bitfinex-derivatives/quotes_ETHF0:USTF0_20250416
["timestamp","ask_amount","ask_price","bid_price","bid_amount"]
[1744765779166,7.33971107,1591.9,1591.8,0.07090496]
[1744765781572,10.54751107,1591.9,1591.8,0.07090496]
[1744765782675,3.14156,1591.7,1591.4,4.46464]
[1744765782974,1.25677,1591.5,1591.4,3.2078]
[1744765783175,1.25677,1591.5,1591.4,4.46465]
[1744765783376,7.43357047,1591.5,1591.4,4.46465]
[1744765783978,4.35790047,1591.5,1591.4,6.27125]
[1744765784276,5.61467047,1591.5,1591.4,6.27125]
[1744765784474,4.35790047,1591.5,1591.4,6.27125]
[1744765784669,5.61467047,1591.5,1591.4,6.27125]
[1744765784876,4.35790047,1591.5,1591.4,6.27125]
[1744765785275,5.61467047,1591.5,1591.4,6.27125]
[1744765786379,4.35790047,1591.5,1591.4,6.27125]
[1744765786773,4.35790047,1591.5,1591.4,12.75235]
[1744765788679,3.10843,1591.7,1591.6,1.25669]
[1744765789276,7.46633047,1591.7,1591.6,3.13809]
[1744765790177,1.23880581,1591.6,1591.5,1.25671]
[1744765790377,1.23880581,1591.6,1591.5,2.96271]
[1744765790378,4.35790047,1591.6,1591.5,2.96271]
[1744765791785,1.6979,1591.8,1591.7,1.25661]
[1744765791979,2.95443,1591.8,1591.7,1.25661]
[1744765792185,7.31233047,1591.8,1591.7,2.96261]
[1744765792386,5.61443047,1591.8,1591.7,2.96261]
[1744765794284,6.24540047,1591.8,1591.7,2.96261]
[1744765794685,4.35790047,1591.8,1591.7,2.96261]
[1744765797991,7.54773047,1591.8,1591.7,2.96261]
[1744765798291,6.29120047,1591.8,1591.7,2.96261]
[1744765799084,7.54773047,1591.8,1591.7,2.96261]
[1744765799293,6.29120047,1591.8,1591.7,2.96261]
[1744765799785,4.35790047,1591.8,1591.7,2.96261]
[1744765799987,5.61443047,1591.8,1591.7,2.96261]
[1744765800291,1.25661,1591.7,1591.6,1.25664]
[1744765800492,4.35790047,1591.7,1591.6,4.46444]
[1744765800687,4.35790047,1591.7,1591.6,6.37044]
[1744765801089,3.7185506,1591.9,1591.8,1.25653]
[1744765801386,1.8971506,1591.9,1591.8,1.25653]
[1744765801591,6.25505107,1591.9,1591.8,6.40353]
[1744765801989,1.8288,1592.1,1591.8,13.28826]
[1744765802298,12.59530053,1592.6,1592.5,1.25598]
[1744765802484,12.59530053,1592.6,1592.5,6.00698]
[1744765802687,12.59530053,1592.6,1592.5,46.80698]
[1744765802887,12.59530053,1592.6,1592.5,48.74618]
[1744765803082,16.953201,1592.6,1592.5,48.74618]
[1744765803289,20.057601,1592.6,1592.5,40.8]
[1744765803491,28.265401,1592.6,1592.5,40.8]
[1744765804097,1.25598,1592.5,1592.4,0.00941885]
[1744765804283,9.34642047,1592.5,1591.9,6.6892]
[1744765804485,1.25626,1592.2,1592.1,1.25628]
[1744765804683,1.25626,1592.2,1592.1,42.05628]
[1744765804886,5.61416047,1592.2,1592.1,42.05628]
[1744765805596,4.35790047,1592.2,1592.1,42.05628]
[1744765806289,12.56570047,1592.2,1592.0,8.36953142]
[1744765806491,1.25638,1592.0,1591.9,4.21458231]
[1744765806687,6.19290047,1592.1,1591.9,4.21458231]
[1744765806998,4.35790047,1592.0,1591.9,7.39617231]
[1744765807188,6.19290047,1592.0,1591.9,7.39617231]
[1744765809189,6.19290047,1592.0,1591.9,3.18159]
[1744765809498,7.44928047,1592.0,1591.9,1.9252]
[1744765809794,7.44928047,1592.0,1591.8,0.00941885]
[1744765809795,1.25646,1591.9,1591.8,0.00941885]
[1744765810001,7.59756047,1591.9,1591.8,0.00941885]
[1744765810190,12.59756047,1591.9,1591.8,0.00941885]
[1744765810390,1.25677,1591.5,1591.4,3.2078]
[1744765810590,1.25677,1591.5,1591.4,4.46465]
[1744765810792,5.61467047,1591.5,1591.4,4.46465]
[1744765810998,5.61467047,1591.5,1591.4,44.0078]
[1744765811198,7.63077047,1591.5,1591.4,44.0078]
[1744765811398,7.63077047,1591.5,1591.4,45.26465]
[1744765811797,7.63077047,1591.5,1591.4,44.0078]
[1744765812698,7.63077047,1591.5,1591.3,15.04855399]
[1744765812699,1.25685,1591.4,1591.3,15.04855399]
[1744765812996,12.37985047,1591.4,1591.3,13.11288399]
[1744765813190,7.63085047,1591.4,1591.3,13.11288399]
[1744765813501,7.63085047,1591.4,1591.3,0.00941885]
[1744765813693,9.45215047,1591.4,1591.3,0.00941885]
[1744765814492,14.45215047,1591.4,1591.3,0.00941885]
[1744765814803,14.45215047,1591.4,1591.0,40.8]
[1744765814804,1.25709,1591.1,1591.0,40.8]
[1744765814988,1.25709,1591.1,1591.0,44.0078]
[1744765815196,5.61499047,1591.1,1591.0,40.8]
[1744765815597,5.61499047,1591.1,1591.0,42.05717]
[1744765816001,5.61499047,1591.1,1591.0,44.07787]
[1744765816501,5.61499047,1591.1,1591.0,42.8207]
[1744765817300,8.82279047,1591.1,1591.0,40.8]
[1744765818000,7.52849047,1591.1,1591.0,40.8]
[1744765819191,4.35790047,1591.1,1591.0,40.8]
[1744765819397,1.9135,1591.5,1591.4,1.25685]
[1744765819602,1.25685,1591.4,1591.3,9.21467]
[1744765819903,5.61475047,1591.4,1591.3,3.2078]
[1744765820097,1.25693,1591.3,1591.2,1.25695]
[1744765820407,4.35790047,1591.3,1591.2,3.16275]
[1744765820703,3.17033,1591.5,1591.2,6.9058]
[1744765820895,4.35790047,1591.5,1591.4,1.25685]
[1744765821101,4.35790047,1591.4,1591.3,1.9662]
[1744765821305,5.61471047,1591.5,1591.3,6.7162]
[1744765821507,3.11245,1591.4,1591.3,7.97313]
[1744765821697,7.47035047,1591.4,1591.3,7.97313]
[1744765822207,4.35790047,1591.4,1591.3,7.97313]
[1744765822403,1.26610885,1591.6,1591.5,1.25677]
[1744765822799,5.62400932,1591.6,1591.5,1.25677]
[1744765823207,1.25677,1591.5,1591.4,3.16258]
[1744765823407,5.61467047,1591.5,1591.4,3.16258]
[1744765823600,5.61467047,1591.5,1591.4,1.9058]
[1744765824207,7.47457047,1591.5,1591.4,1.9058]
[1744765824702,7.47457047,1591.5,1591.4,3.16265]
[1744765824908,5.61467047,1591.5,1591.4,1.9058]
[1744765825304,5.61467047,1591.5,1591.4,3.16265]
[1744765825509,0.00941885,1591.6,1591.5,1.25677]
[1744765825700,5.62400932,1591.6,1591.5,3.16497]
[1744765826708,5.62400932,1591.6,1591.5,1.9082]
[1744765826910,7.45340932,1591.6,1591.5,1.9082]
[1744765828410,7.45340932,1591.6,1591.5,3.16497]
[1744765828612,7.45340932,1591.6,1591.5,1.9082]
[1744765829212,5.62400932,1591.6,1591.5,3.16497]
[1744765829611,7.50921932,1591.6,1591.3,3.22305]
[1744765829805,7.53897047,1591.5,1591.4,6.6174]
[1744765830207,4.35790047,1591.5,1591.4,7.87425]
[1744765830805,5.61467047,1591.5,1591.4,7.87425]
[1744765831111,5.61467047,1591.5,1591.4,6.6174]
[1744765831306,7.53897047,1591.5,1591.4,1.8674]
[1744765831510,1.25685,1591.4,1591.3,6.7162]
[1744765831712,7.53905047,1591.4,1591.3,6.7162]
[1744765831910,7.53905047,1591.4,1591.3,7.97313]
[1744765832206,4.35790047,1591.4,1591.3,9.93863]
[1744765832407,4.35790047,1591.4,1591.3,13.14643]
[1744765832713,1.26616885,1591.6,1591.5,1.25677]
[1744765833202,5.62406932,1591.6,1591.5,1.25677]
[1744765834008,4.36731932,1591.6,1591.5,1.25677]
[1744765834208,5.62400932,1591.6,1591.5,3.22227]
[1744765834810,0.00941885,1591.6,1591.5,11.43007]
[1744765835013,1.25631,1592.1,1592.0,1.2563]
[1744765835209,5.61421047,1592.1,1592.0,1.2563]
[1744765835412,4.35790047,1592.1,1592.0,1.2563]
[1744765835612,4.35790047,1592.1,1592.0,49.2133]
[1744765836016,1.26564885,1592.2,1592.1,1.2563]
[1744765836216,4.36731932,1592.2,1592.1,5.0518]
[1744765836914,4.36731932,1592.2,1592.1,45.8518]
[1744765838507,5.62353932,1592.2,1592.1,44.5955]
[1744765838707,4.36731932,1592.2,1592.1,45.8518]
[1744765839114,4.36731932,1592.2,1592.1,50.6008]
[1744765840016,5.62353932,1592.2,1592.1,49.3445]
[1744765840216,5.62353932,1592.2,1592.1,40.8]
[1744765840713,10.62353932,1592.2,1592.1,40.8]
[1744765840916,14.35283932,1592.2,1592.1,40.8]
[1744765841316,9.35283932,1592.2,1592.1,40.8]
[1744765841505,14.35283932,1592.2,1592.1,40.8]
[1744765841711,9.35283932,1592.2,1592.1,42.0563]
[1744765842006,4.36731932,1592.2,1592.1,42.0563]
[1744765842207,5.62353932,1592.2,1592.1,44.06]
[1744765842809,5.62353932,1592.2,1592.1,40.8]
[1744765843418,7.47023932,1592.2,1592.1,40.8]
[1744765843804,7.47023932,1592.2,1592.1,42.0563]
[1744765844008,7.47023932,1592.2,1592.1,43.8656]
[1744765844213,7.47023932,1592.2,1592.1,42.6093]
[1744765844415,7.47023932,1592.2,1592.1,43.8656]
[1744765845417,4.36731932,1592.2,1592.1,43.8656]
[1744765846018,4.36731932,1592.2,1592.1,43.8656]
[1744765846716,8.21238,1592.6,1592.4,1.25606]
[1744765846717,1.25602,1592.5,1592.4,1.25606]
[1744765846907,5.61392047,1592.5,1592.4,1.25606]
[1744765847312,5.61392047,1592.5,1592.4,3.13906]
[1744765847810,5.61392047,1592.5,1592.4,1.883]
[1744765848217,7.49772047,1592.5,1592.4,1.883]
[1744765849115,7.49772047,1592.5,1592.4,3.13906]
[1744765849515,7.49772047,1592.5,1592.4,1.883]
[1744765849720,1.25606,1592.4,1592.3,4.747]
[1744765850024,5.61396047,1592.4,1592.3,6.00314]
[1744765850217,5.61396047,1592.4,1592.3,7.84024]
[1744765850923,5.61396047,1592.4,1592.3,6.5841]
[1744765851118,5.61396047,1592.4,1592.3,4.747]
[1744765851320,1.25622,1592.2,1592.1,43.8934]
[1744765851521,7.52089047,1592.3,1592.2,1.25622]
[1744765851722,5.61409047,1592.3,1592.2,3.09332]
[1744765852023,4.35790047,1592.3,1592.2,3.09332]
[1744765858122,1.25607,1592.4,1592.3,1.25614]
[1744765858329,4.35790047,1592.4,1592.3,7.86174]
[1744765858821,5.61396047,1592.4,1592.3,7.86174]
[1744765859022,7.59376047,1592.4,1592.3,7.86174]
[1744765860229,7.59376047,1592.4,1592.3,6.6056]
[1744765860430,7.59376047,1592.4,1592.3,6.00214]
[1744765861133,7.59376047,1592.4,1592.3,4.746]
[1744765861324,7.59376047,1592.4,1592.3,6.00214]
[1744765861825,7.59376047,1592.4,1592.3,4.746]
[1744765862331,1.25614,1592.3,1592.2,1.25617]
[1744765862630,4.35790047,1592.3,1592.2,1.25617]
[1744765862830,4.35790047,1592.3,1592.2,3.15047]
[1744765864720,3.23849,1592.5,1592.4,1.25606]
[1744765865131,7.59639047,1592.5,1592.4,1.25606]
[1744765865728,7.59639047,1592.5,1592.4,3.19426]
[1744765866130,7.59639047,1592.5,1592.4,1.9382]
[1744765866331,1.25606,1592.4,1592.3,1.25607]
[1744765866636,5.61396047,1592.4,1592.3,3.19427]
[1744765866832,7.45646047,1592.4,1592.3,3.19427]
[1744765867436,1.25614,1592.3,1592.2,1.25616]
[1744765867730,1.25622,1592.2,1592.1,40.8]
[1744765867937,5.61412047,1592.2,1592.1,40.8]
[1744765868139,1.25638,1592.0,1591.9,3.21721885]
[1744765868444,1.25638,1592.0,1591.9,4.47367885]
[1744765868737,5.1165,1592.3,1591.9,48.76321885]
[1744765868931,1.2563,1592.1,1592.0,1.25633]
[1744765869133,7.45687047,1592.2,1592.1,1.2563]
[1744765869336,1.25627,1592.2,1592.1,1.2563]
[1744765869533,5.61417047,1592.2,1592.1,1.2563]
[1744765869921,1.2563,1592.1,1592.0,3.2477]
[1744765870129,1.25638,1592.0,1591.9,50.01960885]
[1744765870330,4.35790047,1592.0,1591.9,50.01960885]
[1744765870535,4.35790047,1592.0,1591.9,52.01100885]
[1744765871330,1.9087,1592.3,1592.2,1.25622]
[1744765871532,6.26660047,1592.3,1592.2,1.25622]
[1744765871838,4.35790047,1592.3,1592.2,6.00022]
[1744765872134,3.19937885,1592.6,1592.5,1.25598]
[1744765872529,7.55727932,1592.6,1592.5,1.25598]
[1744765873128,1.25598,1592.5,1592.4,3.16605]
[1744765873336,5.61388047,1592.5,1592.4,3.16605]
[1744765873530,5.61388047,1592.5,1592.4,1.91]
[1744765873730,1.25614,1592.3,1592.2,6.00015]
[1744765873931,1.25622,1592.2,1592.1,1.25627]
[1744765874128,1.25638,1592.0,1591.9,44.01721885]
[1744765874433,4.46418,1592.0,1591.9,1e-08]
[1744765874629,5.61428047,1592.0,1591.9,1e-08]
[1744765875029,13.82208047,1592.0,1591.9,1e-08]
[1744765875330,5.61428047,1592.0,1591.9,1e-08]
[1744765876339,10.61428047,1592.0,1591.9,1e-08]
[1744765876528,13.82208047,1592.0,1591.9,1e-08]
[1744765877736,8.82208047,1592.0,1591.9,1e-08]
[1744765879733,8.82208047,1592.0,1591.9,1.25646001]
[1744765880128,5.61428047,1592.0,1591.9,1.25646001]
[1744765880525,5.61428047,1592.0,1591.9,1e-08]
[1744765881336,1.25638,1592.0,1591.9,6.25646001]
[1744765881539,5.61428047,1592.0,1591.9,3.10926001]
[1744765881838,5.61428047,1592.0,1591.9,1.85280001]
[1744765882138,5.61428047,1592.0,1591.9,3.10926001]
[1744765883529,5.61428047,1592.0,1591.9,1e-08]
[1744765883735,5.61428047,1592.0,1591.9,1.25646001]
[1744765884842,1.934,1592.2,1591.9,1.25646001]
[1744765885134,5.61412047,1592.2,1592.1,1.2563]
[1744765885344,4.35790047,1592.2,1592.1,1.2563]
[1744765885640,4.35790047,1592.2,1592.1,3.0807]
[1744765886339,1.25609,1592.4,1592.1,8.0807]
[1744765886638,4.35790047,1592.4,1592.3,1.25614]
[1744765886837,5.61396047,1592.4,1592.3,1.25614]
[1744765887139,5.61396047,1592.4,1592.3,3.14204]
[1744765889131,4.35790047,1592.4,1592.3,3.14204]
[1744765890132,4.35790047,1592.4,1592.3,43.94204]
[1744765891139,5.61396047,1592.4,1592.3,42.6859]
[1744765891436,9.42836047,1592.4,1592.3,42.6859]
[1744765891633,9.42836047,1592.4,1592.3,40.8]
[1744765894546,14.42836047,1592.4,1592.3,40.8]
[1744765896337,6.2809,1592.3,1591.9,1.25640001]
[1744765896533,1.25638,1592.0,1591.9,3.16940001]
[1744765896937,5.61428047,1592.0,1591.9,43.96940001]
[1744765897441,7.43358047,1592.0,1591.9,43.96940001]
[1744765898347,6.17720047,1592.0,1591.9,43.96940001]
[1744765898549,4.35790047,1592.0,1591.9,43.96940001]
[1744765898747,5.61428047,1592.0,1591.9,43.96940001]
[1744765898947,4.35790047,1592.0,1591.9,43.96940001]
[1744765899250,3.2078,1592.3,1592.0,3.14095]
[1744765899548,8.10705,1592.5,1592.4,1.25606]
[1744765899748,12.46495047,1592.5,1592.4,1.25606]
[1744765900548,9.25715047,1592.5,1592.4,3.09666]
[1744765902353,5.61395047,1592.5,1592.4,3.09666]
[1744765903043,7.40935047,1592.5,1592.4,3.09666]
[1744765903546,5.61395047,1592.5,1592.4,3.09666]
[1744765903751,4.35790047,1592.5,1592.4,3.09666]
[1744765903938,5.61388047,1592.5,1592.4,1.8406]
[1744765904248,7.40928047,1592.5,1592.4,1.8406]
[1744765904750,7.40928047,1592.5,1592.4,3.09666]
[1744765905551,5.61388047,1592.5,1592.4,3.09666]
[1744765906145,5.61388047,1592.5,1592.4,1.8406]
[1744765906346,1.25606,1592.4,1592.3,1.25607]
[1744765906548,5.61396047,1592.4,1592.3,3.11567]
[1744765906850,5.61396047,1592.4,1592.3,1.8596]
[1744765907042,7.42236047,1592.4,1592.3,1.8596]
[1744765907350,7.42236047,1592.4,1592.3,3.11574]
[1744765911351,6.16630047,1592.4,1592.3,3.11574]
[1744765911950,7.42236047,1592.4,1592.3,3.11574]
[1744765912254,6.16630047,1592.4,1592.3,3.11574]
[1744765912452,7.42236047,1592.4,1592.3,3.11574]
[1744765916054,1.25622,1592.3,1592.1,4.94845]
[1744765916251,1.25622,1592.2,1592.1,4.86823]
[1744765916445,4.35790047,1592.2,1592.1,4.8683]
[1744765916653,1.25603,1592.5,1592.4,1.25606]
[1744765916855,3.10333,1592.5,1592.4,1.25606]
[1744765917153,7.46123047,1592.5,1592.4,3.12226]
[1744765918049,7.46123047,1592.5,1592.4,1.8662]
[1744765918249,7.46123047,1592.5,1592.4,3.12226]
[1744765918655,7.46123047,1592.5,1592.4,1.8662]
[1744765919761,1.25606,1592.4,1592.3,1.25607]
[1744765920056,9.37776047,1592.4,1592.3,1.25607]
[1744765920253,9.37776047,1592.4,1592.1,1.8077]
[1744765920254,1.25622,1592.2,1592.1,1.8077]
[1744765920457,1.2563,1592.1,1592.0,1.7697]
[1744765920760,1.25638,1592.0,1591.9,45.26423001]
[1744765920951,5.00716,1592.1,1592.0,1.25638]
[1744765921152,1.25624,1592.2,1592.1,1.2563]
[1744765921357,5.61411047,1592.3,1592.2,1.25622]
[1744765921558,5.61411047,1592.3,1592.2,3.02592]
[1744765922259,5.61411047,1592.3,1592.2,4.96792]
[1744765922853,7.50921047,1592.3,1592.2,3.7117]
[1744765923259,1.25638,1592.0,1591.9,45.26417001]
[1744765923663,5.61428047,1592.0,1591.9,47.09837001]
[1744765925257,5.02942,1592.4,1592.2,1.25619]
[1744765925462,1.25627,1592.2,1592.1,1.25624]
[1744765925663,1.25627,1592.2,1592.1,3.09044]
[1744765925863,5.61417047,1592.2,1592.1,3.09044]
[1744765928267,5.61417047,1592.2,1592.1,3.0905]
[1744765928469,7.41327047,1592.2,1592.1,1.8342]
[1744765928767,7.41327047,1592.2,1592.1,3.0905]
[1744765929067,7.41327047,1592.2,1592.1,1.8342]
[1744765929264,7.41327047,1592.2,1592.1,3.0905]
[1744765929466,7.41327047,1592.2,1592.1,1.8342]
[1744765929670,1.2563,1592.1,1592.0,1.25631]
[1744765929869,9.30120047,1592.1,1592.0,1.8459]
[1744765930169,1.25638,1592.0,1591.9,47.11008001]
[1744765930356,7.44698047,1592.0,1591.9,40.80000001]
[1744765930671,19.02578047,1592.0,1591.9,1e-08]
[1744765931969,9.28378047,1592.0,1591.9,1e-08]
[1744765934473,14.28378047,1592.0,1591.9,1e-08]
[1744765934771,19.02278047,1592.0,1591.9,1e-08]
[1744765935563,14.02278047,1592.0,1591.9,1e-08]
[1744765936475,19.02278047,1592.0,1591.9,1e-08]
[1744765938974,3.14182,1591.6,1591.2,10.22796416]
[1744765939174,1.25693,1591.3,1591.2,13.24573416]
[1744765939377,1.25693,1591.3,1591.2,10.22796416]
[1744765939673,5.61483047,1591.3,1591.2,51.02796416]
[1744765939874,5.61483047,1591.3,1591.2,42.6678]
[1744765940178,7.55623047,1591.3,1591.2,42.6678]
[1744765941481,0.00941885,1591.4,1591.2,47.6678]
[1744765941670,0.00941885,1591.4,1591.3,4.46473]
[1744765942183,0.00941885,1591.4,1591.3,1.25693]
[1744765942184,5.62416932,1591.4,1591.3,1.25693]
[1744765942368,1.25693,1591.3,1591.2,43.92475]
[1744765942564,5.62419932,1591.4,1591.3,1.25693]
[1744765943585,4.36731932,1591.4,1591.3,1.25693]
[1744765943875,0.00941885,1591.4,1591.3,9.46473]
[1744765949573,0.00941885,1591.4,1591.3,4.46473]
[1744765951177,5.62416932,1591.4,1591.3,4.46473]
[1744765951377,4.36731932,1591.4,1591.3,4.46473]
[1744765952782,0.00941885,1591.4,1591.3,4.46473]
[1744765954785,4.36731932,1591.4,1591.3,4.46473]
[1744765955872,4.36731932,1591.4,1591.3,6.43213]
[1744765956277,4.36731932,1591.4,1591.3,8.34623]
[1744765958283,5.01251,1591.9,1591.7,1.25657]
[1744765958492,3.14154,1591.7,1591.5,3.2078]
[1744765958687,1.25669,1591.6,1591.5,1.9351]
[1744765958890,9.34429047,1591.6,1591.5,1.9351]
[1744765960384,8.08760047,1591.6,1591.3,4.46468]
[1744765960585,1.25685,1591.4,1591.3,6.27158]
[1744765961291,5.61475047,1591.4,1591.3,3.06378]
[1744765963486,4.35790047,1591.4,1591.3,3.06378]
[1744765963692,4.35790047,1591.4,1591.3,6.27158]
[1744765963891,1.96581885,1591.7,1591.6,1.25669]
[1744765964086,3.22242885,1591.7,1591.6,1.25669]
[1744765964283,7.58032932,1591.7,1591.6,1.25669]
[1744765964487,7.58032932,1591.7,1591.6,3.14249]
[1744765964685,6.32371932,1591.7,1591.6,3.14249]
[1744765964885,6.32371932,1591.7,1591.6,6.35029]
[1744765965086,6.32371932,1591.7,1591.6,8.24649]
[1744765966501,8.34056139,1592.1,1592.0,1.25638]
[1744765966996,12.69846186,1592.1,1592.0,1.25638]
[1744765967197,12.69846186,1592.1,1592.0,4.93618]
[1744765968292,4.35790047,1592.1,1592.0,4.93618]
[1744765969098,6.18230047,1592.1,1592.0,1.25638]
[1744765970695,6.18230047,1592.1,1592.0,3.14408]
[1744765971396,4.35790047,1592.1,1592.0,3.14408]
[1744765972200,6.24630047,1592.1,1592.0,3.14408]
[1744765973699,4.35790047,1592.1,1592.0,3.14408]
[1744765976088,4.35790047,1592.1,1592.0,43.94408]
[1744765979499,1.25601,1592.5,1592.1,3.14075]
[1744765979806,4.92161,1592.5,1592.4,1.25606]
[1744765980102,1.25606,1592.4,1592.3,4.46388]
[1744765980303,1.25614,1592.3,1592.2,1.25619]
[1744765980702,3.09474,1592.3,1592.2,1.25619]
[1744765981702,1.8386,1592.3,1592.2,4.46399]
[1744765981897,1.8386,1592.3,1592.2,6.28189]
[1744765982805,3.09474,1592.3,1592.2,3.07409]
[1744765982997,1.8386,1592.3,1592.2,3.07409]
[1744765983306,3.09474,1592.3,1592.2,3.07409]
[1744765983606,3.14079,1592.1,1591.5,12.48747086]
[1744765983905,1.2565,1591.9,1591.7,1.25659]
[1744765984202,1.25646,1591.9,1591.8,40.8]
[1744765984401,4.91496,1591.9,1591.8,42.05653]
[1744765984799,4.91496,1591.9,1591.8,40.8]
[1744765987006,4.91496,1591.9,1591.8,42.05653]
[1744765987602,4.91496,1591.9,1591.8,40.8]
[1744765991012,1.25653,1591.8,1591.7,0.00941885]
[1744765991312,8.19503,1591.8,1591.7,0.00941885]
[1744765992912,3.07993,1591.8,1591.7,0.00941885]
[1744765993114,3.07993,1591.8,1591.7,1.82541885]
[1744765993713,6.28773,1591.8,1591.7,0.00941885]
[1744765994305,3.07993,1591.8,1591.7,1.26602885]
[1744765994715,3.07993,1591.8,1591.7,3.08202885]
[1744765995010,3.07993,1591.8,1591.7,1.82541885]
[1744765995715,3.07993,1591.8,1591.7,0.00941885]
[1744765997313,6.28773,1591.8,1591.7,0.00941885]
[1744765997705,1.25685,1591.4,1591.3,3.2004]
[1744765997902,1.25685,1591.4,1591.3,5.0118]
[1744765998308,1.25685,1591.4,1591.3,45.8118]
[1744765998909,3.24185,1591.4,1591.3,45.8118]
[1744765999316,3.24185,1591.4,1591.3,40.8]
[1744765999620,1.25693,1591.3,1591.2,0.00941885]
[1744765999814,6.32983,1591.3,1591.2,0.00941885]
[1744766003412,3.14253,1591.2,1590.8,3.1146]
[1744766003729,1.25725,1590.9,1590.8,4.9124]
[1744766004017,1.25725,1590.9,1590.8,3.0551]
[1744766004211,4.46505,1590.9,1590.8,1.7978]
[1744766004415,4.46505,1590.9,1590.8,40.8]
[1744766004817,6.36135,1590.9,1590.8,40.8]
[1744766006316,1.25732,1590.8,1590.7,0.00941885]
[1744766006615,5.08002,1590.8,1590.7,0.00941885]
[1744766006812,5.08002,1590.8,1590.7,40.80941885]
[1744766008521,3.20272,1590.8,1590.7,40.80941885]
[1744766010819,3.20272,1590.8,1590.7,8.85e-06]
[1744766011029,5.02292,1590.8,1590.7,8.85e-06]
[1744766011619,14.75492,1590.8,1590.7,8.85e-06]
[1744766012523,9.75492,1590.8,1590.7,8.85e-06]
[1744766016125,14.75492,1590.8,1590.7,8.85e-06]
[1744766016321,1.25764,1590.4,1590.3,1.8993]
[1744766016521,1.25772,1590.3,1590.2,1.9281]
[1744766016825,5.01822,1590.3,1590.2,3.8274]
[1744766017022,1.2578,1590.2,1590.1,40.8]
[1744766017223,1.25788,1590.1,1590.0,1.9529]
[1744766017428,1.25788,1590.1,1590.0,3.8364]
[1744766017626,3.07228,1590.1,1590.0,3.8364]
[1744766017928,3.07228,1590.1,1590.0,44.6364]
[1744766018534,3.07228,1590.1,1590.0,42.7529]
[1744766018724,1.25796,1590.0,1589.9,0.00632161]
[1744766018917,1.25804,1589.9,1589.8,1.8835]
[1744766019316,3.07244,1589.9,1589.8,1.8835]
[1744766019726,1.25812,1589.8,1589.7,1.8407]
[1744766020026,6.28032,1589.8,1589.7,1.8407]
[1744766020225,6.28032,1589.8,1589.7,42.6407]
[1744766020529,6.28032,1589.8,1589.7,40.8]
[1744766020828,1.25835,1589.5,1589.4,1.9049]
[1744766021124,1.25835,1589.5,1589.4,3.16333]
[1744766021632,1.25835,1589.5,1589.4,1.9049]
[1744766021932,1.25835,1589.5,1589.4,3.7087]
[1744766022117,1.25835,1589.5,1589.4,4.96713]
[1744766022322,1.25835,1589.5,1589.4,3.7087]
[1744766022520,4.46612,1589.6,1589.4,3.7087]
[1744766022826,4.46612,1589.6,1589.5,1.25835]
[1744766023018,1.25827,1589.7,1589.6,1.25827]
[1744766023826,1.25827,1589.7,1589.6,43.93327]
[1744766025033,1.25827,1589.7,1589.6,42.675]
[1744766025234,1.25827,1589.7,1589.6,43.93327]
[1744766025434,1.25827,1589.7,1589.6,42.675]
[1744766026041,4.46607,1589.7,1589.6,42.675]
[1744766027325,1.25827,1589.7,1589.6,42.675]
[1744766027730,4.46607,1589.7,1589.6,42.675]
[1744766028131,1.25827,1589.7,1589.6,42.675]
[1744766029431,4.46607,1589.7,1589.6,42.675]
[1744766029633,1.25827,1589.7,1589.6,42.675]
[1744766030240,4.46607,1589.7,1589.6,42.675]
[1744766033546,1.25827,1589.7,1589.6,42.675]
[1744766033733,1.25827,1589.7,1589.6,43.93327]
[1744766033935,1.25806,1589.9,1589.8,1.25812]
[1744766034139,1.25801,1590.0,1589.9,1.25796]
[1744766034539,1.25802,1590.0,1589.9,1.25797]
[1744766038342,1.25812,1589.8,1589.7,3.05982]
[1744766038743,1.25812,1589.8,1589.7,8.05982]
[1744766039044,1.25811,1589.9,1589.8,1.25807]
[1744766040539,0.00941885,1590.2,1589.8,3.14515]
[1744766040734,0.00941885,1590.2,1590.1,1.25788]
[1744766041148,3.2078,1590.5,1590.4,1.25764]
[1744766041345,1.25754,1590.6,1590.5,1.25756]
[1744766041554,1.25765,1590.5,1590.4,1.25759]
[1744766042242,0.00941885,1590.6,1590.5,1.25756]
[1744766042443,1.728,1591.1,1590.5,6.4739]
[1744766042646,1.25748,1590.6,1590.5,6.4739]
[1744766042844,1.25747,1590.7,1590.6,1.25747]
[1744766043044,1.2574,1590.7,1590.6,1.25747]
[1744766043547,1.25748,1590.7,1590.6,1.25747]
[1744766043948,1.26679885,1590.8,1590.7,1.2574]
[1744766044150,1.26679885,1590.8,1590.6,1.25742]
[1744766044448,1.26679885,1590.8,1590.7,40.8]
[1744766044949,1.26679885,1590.8,1590.7,42.0574]
[1744766045148,1.26679885,1590.8,1590.7,40.8]
[1744766045353,4.47459885,1590.8,1590.7,40.8]
[1744766047850,9.47459885,1590.8,1590.7,40.8]
[1744766048051,13.20889885,1590.8,1590.7,40.8]
[1744766048448,1.25756,1590.5,1590.4,1.8993]
[1744766048747,1.25764,1590.4,1590.3,0.00941884]
[1744766048949,3.11304,1590.4,1590.3,0.00941884]
[1744766049145,4.99384,1590.4,1590.3,0.00941884]
[1744766049352,4.99384,1590.4,1590.3,8.84e-06]
[1744766049353,9.99384,1590.4,1590.3,8.84e-06]
[1744766049647,1.25804,1589.9,1589.8,8.36016416]
[1744766049848,1.25804,1589.9,1589.8,51.05946416]
[1744766050356,3.13884,1589.9,1589.8,51.05946416]
[1744766050559,1.25804,1589.9,1589.8,1.8993]
[1744766051557,4.46584,1589.9,1589.8,1.8993]
[1744766051960,1.25804,1589.9,1589.8,1.8993]
[1744766052456,1.25812,1589.8,1589.7,42.68511885]
[1744766052759,3.00162,1589.8,1589.7,40.80941885]
[1744766053754,8.00162,1589.8,1589.7,0.00941885]
[1744766053958,7.72362,1589.8,1589.7,0.00941885]
[1744766054255,7.72362,1589.8,1589.7,40.80941885]
[1744766054560,7.72362,1589.8,1589.7,0.00941885]
[1744766055957,3.00162,1589.8,1589.7,0.00941885]
[1744766056168,1.25812,1589.8,1589.7,3.03370885]